[Event "Titled Tuesday Blitz May 9 Late 2023"]
[White "Rodshtein, Maxim"]
[Black "Martin Barcelo, Carles"]
[WhiteFideId "2806851"]
[BlackFideId "24561444"]
[WhiteElo "2555"]
[BlackElo "2089"]
[Result "0-1"]
[Round "01"]
[TimeControl "180+2"]
[Date "2023.05.09"]
[WhiteClock "0:00:19"]
[BlackClock "0:00:06"]

1. e4 {[%clk 0:02:58]}  e6 {[%clk 0:02:56]} 2. d4 {[%clk 0:02:57]}  d5 {[%clk 0:02:56]} 3. Nc3 {[%clk 0:02:58]}  Nf6 {[%clk 0:02:52]} 4. e5 {[%clk 0:02:58]}  Nfd7 {[%clk 0:02:53]} 5. f4 {[%clk 0:02:58]}  c5 {[%clk 0:02:53]} 6. Nf3 {[%clk 0:02:59]}  Nc6 {[%clk 0:02:53]} 7. Be3 {[%clk 0:02:59]}  Qb6 {[%clk 0:02:53]} 8. Na4 {[%clk 0:02:54]}  Qc7 {[%clk 0:02:53]} 9. dxc5 {[%clk 0:02:48]}  Qa5+ {[%clk 0:02:47]} 10. c3 {[%clk 0:02:46]}  b5 {[%clk 0:02:46]} 11. cxb6 {[%clk 0:02:32]}  axb6 {[%clk 0:02:46]} 12. b4 {[%clk 0:01:29]}  Nxb4 {[%clk 0:02:18]} 13. cxb4 {[%clk 0:01:25]}  Bxb4+ {[%clk 0:02:16]} 14. Kf2 {[%clk 0:01:21]}  Qxa4 {[%clk 0:02:15]} 15. Qxa4 {[%clk 0:01:21]}  Rxa4 {[%clk 0:02:16]} 16. Bb5 {[%clk 0:01:21]}  Ra3 {[%clk 0:02:00]} 17. Rhc1 {[%clk 0:01:18]}  O-O {[%clk 0:01:57]} 18. Nd4 {[%clk 0:01:03]}  Bc5 {[%clk 0:01:46]} 19. Rc2 {[%clk 0:00:31]}  f6 {[%clk 0:01:32]} 20. exf6 {[%clk 0:00:30]}  Nxf6 {[%clk 0:00:56]} 21. Ke2 {[%clk 0:00:30]}  Ng4 {[%clk 0:00:50]} 22. Bg1 {[%clk 0:00:30]}  Rxf4 {[%clk 0:00:49]} 23. Nf3 {[%clk 0:00:27]}  Re4+ {[%clk 0:00:35]} 24. Kf1 {[%clk 0:00:27]}  Ne3+ {[%clk 0:00:29]} 25. Bxe3 {[%clk 0:00:27]}  Rexe3 {[%clk 0:00:25]} 26. Rd1 {[%clk 0:00:26]}  Ba6 {[%clk 0:00:24]} 27. Bxa6 {[%clk 0:00:25]}  Rxa6 {[%clk 0:00:25]} 28. Nd2 {[%clk 0:00:23]}  Rea3 {[%clk 0:00:24]} 29. Nb3 {[%clk 0:00:23]}  Rxa2 {[%clk 0:00:23]} 30. Nxc5 {[%clk 0:00:22]}  bxc5 {[%clk 0:00:20]} 31. Rxc5 {[%clk 0:00:23]}  Ra1 {[%clk 0:00:19]} 32. Rxa1 {[%clk 0:00:20]}  Rxa1+ {[%clk 0:00:20]} 33. Kf2 {[%clk 0:00:20]}  Ra3 {[%clk 0:00:19]} 34. Rc7 {[%clk 0:00:19]}  h6 {[%clk 0:00:19]} 35. Re7 {[%clk 0:00:19]}  Ra6 {[%clk 0:00:17]} 36. Kf3 {[%clk 0:00:19]}  Kf8 {[%clk 0:00:10]} 37. Rd7 {[%clk 0:00:19]}  Ra4 {[%clk 0:00:06]} 38. g3 {[%clk 0:00:18]}  Re4 {[%clk 0:00:06]} 39. h4 {[%clk 0:00:17]}  h5 {[%clk 0:00:05]} 40. Rc7 {[%clk 0:00:15]}  Kg8 {[%clk 0:00:06]} 41. Rd7 {[%clk 0:00:15]}  Kh7 {[%clk 0:00:07]} 42. Re7 {[%clk 0:00:16]}  Kg6 {[%clk 0:00:07]} 43. Rd7 {[%clk 0:00:16]}  Kf6 {[%clk 0:00:08]} 44. Rd8 {[%clk 0:00:16]}  Ke5 {[%clk 0:00:07]} 45. Rg8 {[%clk 0:00:16]}  Rg4 {[%clk 0:00:07]} 46. Re8 {[%clk 0:00:15]}  d4 {[%clk 0:00:06]} 47. Rd8 {[%clk 0:00:16]}  g6 {[%clk 0:00:05]} 48. Rd7 {[%clk 0:00:16]}  Kf5 {[%clk 0:00:06]} 49. Rf7+ {[%clk 0:00:16]}  Ke5 {[%clk 0:00:06]} 50. Rd7 {[%clk 0:00:17]}  Kf6 {[%clk 0:00:07]} 51. Rd8 {[%clk 0:00:16]}  e5 {[%clk 0:00:07]} 52. Rd6+ {[%clk 0:00:15]}  Ke7 {[%clk 0:00:07]} 53. Ra6 {[%clk 0:00:16]}  e4+ {[%clk 0:00:07]} 54. Kf2 {[%clk 0:00:17]}  e3+ {[%clk 0:00:06]} 55. Kf3 {[%clk 0:00:17]}  e2 {[%clk 0:00:04]} 56. Kxe2 {[%clk 0:00:17]}  Rxg3 {[%clk 0:00:04]} 57. Ra4 {[%clk 0:00:12]}  Rg4 {[%clk 0:00:04]} 58. Ra6 {[%clk 0:00:13]}  Kf7 {[%clk 0:00:03]} 59. Kf3 {[%clk 0:00:13]}  Rxh4 {[%clk 0:00:03]} 60. Rd6 {[%clk 0:00:13]}  Rg4 {[%clk 0:00:03]} 61. Rd7+ {[%clk 0:00:13]}  Kf6 {[%clk 0:00:03]} 62. Rd6+ {[%clk 0:00:13]}  Kg5 {[%clk 0:00:04]} 63. Rd8 {[%clk 0:00:14]}  Kh4 {[%clk 0:00:04]} 64. Rd6 {[%clk 0:00:15]}  Rg3+ {[%clk 0:00:04]} 65. Kf4 {[%clk 0:00:16]}  g5+ {[%clk 0:00:04]} 66. Ke4 {[%clk 0:00:16]}  Rg4+ {[%clk 0:00:03]} 67. Kf3 {[%clk 0:00:17]}  Rf4+ {[%clk 0:00:03]} 68. Kg2 {[%clk 0:00:17]}  Kg4 {[%clk 0:00:04]} 69. Rd5 {[%clk 0:00:17]}  h4 {[%clk 0:00:05]} 70. Rd7 {[%clk 0:00:18]}  Re4 {[%clk 0:00:05]} 71. Kh2 {[%clk 0:00:18]}  Re2+ {[%clk 0:00:05]} 72. Kg1 {[%clk 0:00:18]}  Kg3 {[%clk 0:00:06]} 73. Rd5 {[%clk 0:00:19]}  Re1# {[%clk 0:00:06]} 0-1


[Site "https://www.chess.com"]

[Event "Titled Tuesday Blitz May 9 Late 2023"]
[White "Kovalevsky, Stanislav"]
[Black "Mekhitarian, Krikor Sevag"]
[WhiteFideId "13508598"]
[BlackFideId "2107660"]
[WhiteElo "2174"]
[BlackElo "2604"]
[Result "0-1"]
[Round "01"]
[TimeControl "180+2"]
[Date "2023.05.09"]
[WhiteClock "0:00:13"]
[BlackClock "0:00:29"]

1. c4 {[%clk 0:02:46]}  e5 {[%clk 0:02:58]} 2. Nc3 {[%clk 0:02:46]}  Nf6 {[%clk 0:02:56]} 3. g3 {[%clk 0:02:46]}  Bc5 {[%clk 0:02:54]} 4. Bg2 {[%clk 0:02:46]}  c6 {[%clk 0:02:55]} 5. e3 {[%clk 0:02:47]}  d5 {[%clk 0:02:55]} 6. cxd5 {[%clk 0:02:48]}  cxd5 {[%clk 0:02:56]} 7. d4 {[%clk 0:02:49]}  exd4 {[%clk 0:02:50]} 8. exd4 {[%clk 0:02:50]}  Bb4 {[%clk 0:02:50]} 9. Ne2 {[%clk 0:02:50]}  O-O {[%clk 0:02:50]} 10. O-O {[%clk 0:02:50]}  h6 {[%clk 0:02:46]} 11. Qb3 {[%clk 0:02:49]}  Bxc3 {[%clk 0:02:43]} 12. Nxc3 {[%clk 0:02:48]}  Nc6 {[%clk 0:02:40]} 13. Nxd5 {[%clk 0:02:37]}  Nxd4 {[%clk 0:02:31]} 14. Nxf6+ {[%clk 0:02:30]}  Qxf6 {[%clk 0:02:30]} 15. Qa4 {[%clk 0:02:20]}  b5 {[%clk 0:02:11]} 16. Qd1 {[%clk 0:02:11]}  Bf5 {[%clk 0:02:10]} 17. Bf4 {[%clk 0:02:01]}  Rad8 {[%clk 0:02:07]} 18. Qh5 {[%clk 0:01:47]}  Rfe8 {[%clk 0:01:29]} 19. Rae1 {[%clk 0:01:34]}  Bd3 {[%clk 0:01:01]} 20. Be5 {[%clk 0:01:06]}  Qf5 {[%clk 0:01:00]} 21. Qh4 {[%clk 0:00:25]}  Bxf1 {[%clk 0:00:51]} 22. Bxd4 {[%clk 0:00:25]}  Bxg2 {[%clk 0:00:45]} 23. Rxe8+ {[%clk 0:00:24]}  Rxe8 {[%clk 0:00:45]} 24. Kxg2 {[%clk 0:00:23]}  Qd5+ {[%clk 0:00:32]} 25. Kh3 {[%clk 0:00:13]}  Re4 {[%clk 0:00:29]} 0-1


[Site "https://www.chess.com"]

[Event "Titled Tuesday Blitz May 9 Late 2023"]
[White "Storey, Charles H"]
[Black "Sattarov, Bobir"]
[WhiteFideId "406686"]
[BlackFideId "14203081"]
[WhiteElo "2196"]
[BlackElo "2351"]
[Result "1-0"]
[Round "01"]
[TimeControl "180+2"]
[Date "2023.05.09"]
[WhiteClock "0:00:09"]
[BlackClock "0:01:39"]

1. e4 {[%clk 0:02:59]}  e5 {[%clk 0:02:57]} 2. Nf3 {[%clk 0:02:59]}  Nc6 {[%clk 0:02:58]} 3. Bb5 {[%clk 0:02:59]}  a6 {[%clk 0:02:58]} 4. Ba4 {[%clk 0:02:59]}  Bc5 {[%clk 0:02:56]} 5. O-O {[%clk 0:02:54]}  Qf6 {[%clk 0:02:55]} 6. c3 {[%clk 0:02:37]}  Nge7 {[%clk 0:02:55]} 7. d3 {[%clk 0:02:31]}  h6 {[%clk 0:02:55]} 8. Be3 {[%clk 0:02:30]}  Ba7 {[%clk 0:02:55]} 9. Nbd2 {[%clk 0:02:27]}  O-O {[%clk 0:02:55]} 10. Bc2 {[%clk 0:02:20]}  d6 {[%clk 0:02:55]} 11. h3 {[%clk 0:02:18]}  Ng6 {[%clk 0:02:55]} 12. Bxa7 {[%clk 0:02:07]}  Rxa7 {[%clk 0:02:56]} 13. Nc4 {[%clk 0:02:05]}  Nf4 {[%clk 0:02:56]} 14. Ne3 {[%clk 0:02:03]}  Ne7 {[%clk 0:02:55]} 15. Ng4 {[%clk 0:01:49]}  Bxg4 {[%clk 0:02:54]} 16. hxg4 {[%clk 0:01:50]}  Raa8 {[%clk 0:02:50]} 17. g3 {[%clk 0:01:46]}  Ne6 {[%clk 0:02:50]} 18. Kg2 {[%clk 0:01:45]}  Rad8 {[%clk 0:02:49]} 19. Bb3 {[%clk 0:01:42]}  d5 {[%clk 0:02:49]} 20. Qe2 {[%clk 0:01:36]}  dxe4 {[%clk 0:02:46]} 21. dxe4 {[%clk 0:01:36]}  Ng6 {[%clk 0:02:45]} 22. Bxe6 {[%clk 0:01:34]}  Qxe6 {[%clk 0:02:46]} 23. Nh4 {[%clk 0:01:29]}  Nxh4+ {[%clk 0:02:42]} 24. gxh4 {[%clk 0:01:30]}  Rd6 {[%clk 0:02:42]} 25. Rad1 {[%clk 0:01:28]}  Rfd8 {[%clk 0:02:41]} 26. Rxd6 {[%clk 0:01:28]}  Rxd6 {[%clk 0:02:42]} 27. b3 {[%clk 0:01:16]}  Qd7 {[%clk 0:02:39]} 28. Qf3 {[%clk 0:00:55]}  Rd3 {[%clk 0:02:36]} 29. Qf5 {[%clk 0:00:55]}  Qd8 {[%clk 0:02:27]} 30. g5 {[%clk 0:00:30]}  hxg5 {[%clk 0:02:27]} 31. hxg5 {[%clk 0:00:30]}  g6 {[%clk 0:02:23]} 32. Qxe5 {[%clk 0:00:26]}  Qd7 {[%clk 0:02:21]} 33. f3 {[%clk 0:00:13]}  Qd6 {[%clk 0:02:00]} 34. Qxd6 {[%clk 0:00:13]}  cxd6 {[%clk 0:02:01]} 35. c4 {[%clk 0:00:13]}  Kf8 {[%clk 0:02:01]} 36. Rf2 {[%clk 0:00:13]}  Ke7 {[%clk 0:02:01]} 37. Rc2 {[%clk 0:00:13]}  Ke6 {[%clk 0:02:02]} 38. Kf2 {[%clk 0:00:14]}  Ke5 {[%clk 0:02:02]} 39. Ke2 {[%clk 0:00:14]}  Rd4 {[%clk 0:02:00]} 40. Ke3 {[%clk 0:00:14]}  Rd1 {[%clk 0:02:01]} 41. f4+ {[%clk 0:00:14]}  Ke6 {[%clk 0:02:01]} 42. Rd2 {[%clk 0:00:14]}  Re1+ {[%clk 0:02:00]} 43. Kd4 {[%clk 0:00:13]}  Rf1 {[%clk 0:02:00]} 44. Ke3 {[%clk 0:00:12]}  Re1+ {[%clk 0:02:00]} 45. Re2 {[%clk 0:00:13]}  Ra1 {[%clk 0:02:00]} 46. Kd4 {[%clk 0:00:11]}  Rd1+ {[%clk 0:02:00]} 47. Kc3 {[%clk 0:00:12]}  Rf1 {[%clk 0:01:59]} 48. f5+ {[%clk 0:00:12]}  Ke5 {[%clk 0:01:56]} 49. fxg6 {[%clk 0:00:11]}  fxg6 {[%clk 0:01:57]} 50. Rd2 {[%clk 0:00:11]}  Rf3+ {[%clk 0:01:55]} 51. Kb4 {[%clk 0:00:11]}  Rf7 {[%clk 0:01:50]} 52. Rd5+ {[%clk 0:00:11]}  Ke6 {[%clk 0:01:50]} 53. Ka5 {[%clk 0:00:11]}  Rf4 {[%clk 0:01:48]} 54. Rd4 {[%clk 0:00:09]}  Rf2 {[%clk 0:01:44]} 55. a4 {[%clk 0:00:08]}  Rb2 {[%clk 0:01:43]} 56. b4 {[%clk 0:00:08]}  Ke5 {[%clk 0:01:42]} 57. Rd5+ {[%clk 0:00:08]}  Kxe4 {[%clk 0:01:39]} 58. Rxd6 {[%clk 0:00:08]}  Kf5 {[%clk 0:01:40]} 59. Rb6 {[%clk 0:00:07]}  Kxg5 {[%clk 0:01:40]} 60. Rxb7 {[%clk 0:00:08]}  Kf5 {[%clk 0:01:40]} 61. c5 {[%clk 0:00:08]}  g5 {[%clk 0:01:41]} 62. Kxa6 {[%clk 0:00:08]}  g4 {[%clk 0:01:42]} 63. b5 {[%clk 0:00:08]}  g3 {[%clk 0:01:42]} 64. Rg7 {[%clk 0:00:08]}  g2 {[%clk 0:01:42]} 65. c6 {[%clk 0:00:08]}  Re2 {[%clk 0:01:42]} 66. a5 {[%clk 0:00:06]}  Kf6 {[%clk 0:01:41]} 67. Rg8 {[%clk 0:00:06]}  Kf7 {[%clk 0:01:41]} 68. Rg3 {[%clk 0:00:06]}  Ke7 {[%clk 0:01:40]} 69. Kb6 {[%clk 0:00:06]}  Kd8 {[%clk 0:01:40]} 70. a6 {[%clk 0:00:07]}  Ra2 {[%clk 0:01:38]} 71. a7 {[%clk 0:00:07]}  Ke7 {[%clk 0:01:38]} 72. Rxg2 {[%clk 0:00:07]}  Rxg2 {[%clk 0:01:37]} 73. a8=Q {[%clk 0:00:07]}  Rc2 {[%clk 0:01:37]} 74. Qb7+ {[%clk 0:00:08]}  Ke6 {[%clk 0:01:38]} 75. Qd7+ {[%clk 0:00:08]}  Ke5 {[%clk 0:01:38]} 76. c7 {[%clk 0:00:08]}  Ke4 {[%clk 0:01:39]} 77. c8=Q {[%clk 0:00:09]}  Ke3 {[%clk 0:01:40]} 78. Qxc2 {[%clk 0:00:09]}  Kf3 {[%clk 0:01:39]} 79. Qdd3+ {[%clk 0:00:09]} 1-0


[Site "https://www.chess.com"]

[Event "Titled Tuesday Blitz May 9 Late 2023"]
[White "Riehle, Marco"]
[Black "Sliwicki, Damian"]
[WhiteFideId "12904392"]
[BlackFideId "1127128"]
[WhiteElo "2462"]
[BlackElo "2030"]
[Result "1-0"]
[Round "01"]
[TimeControl "180+2"]
[Date "2023.05.09"]
[WhiteClock "0:00:12"]
[BlackClock "0:00:00"]

1. e4 {[%clk 0:02:59]}  c5 {[%clk 0:02:53]} 2. a3 {[%clk 0:02:58]}  g6 {[%clk 0:02:51]} 3. h4 {[%clk 0:02:57]}  Nc6 {[%clk 0:02:45]} 4. h5 {[%clk 0:02:57]}  Nf6 {[%clk 0:02:32]} 5. hxg6 {[%clk 0:02:55]}  fxg6 {[%clk 0:02:31]} 6. Nc3 {[%clk 0:02:55]}  Bg7 {[%clk 0:02:30]} 7. Bc4 {[%clk 0:02:53]}  Qc7 {[%clk 0:02:19]} 8. d3 {[%clk 0:02:49]}  d6 {[%clk 0:02:17]} 9. Bg5 {[%clk 0:02:43]}  Bd7 {[%clk 0:01:54]} 10. Qd2 {[%clk 0:02:37]}  e6 {[%clk 0:01:49]} 11. Nf3 {[%clk 0:02:32]}  O-O-O {[%clk 0:01:48]} 12. O-O-O {[%clk 0:02:25]}  a6 {[%clk 0:01:33]} 13. Kb1 {[%clk 0:02:23]}  b5 {[%clk 0:01:30]} 14. Bb3 {[%clk 0:02:22]}  Rde8 {[%clk 0:01:22]} 15. Rh3 {[%clk 0:01:52]}  Ng4 {[%clk 0:01:14]} 16. Bf4 {[%clk 0:01:41]}  Na5 {[%clk 0:00:42]} 17. Ba2 {[%clk 0:01:38]}  b4 {[%clk 0:00:42]} 18. axb4 {[%clk 0:01:36]}  cxb4 {[%clk 0:00:43]} 19. Ne2 {[%clk 0:01:33]}  Nxf2 {[%clk 0:00:43]} 20. Qxb4 {[%clk 0:01:27]}  Nxd1 {[%clk 0:00:39]} 21. Bxd6 {[%clk 0:01:18]}  Qb7 {[%clk 0:00:33]} 22. Qc5+ {[%clk 0:01:15]}  Nc6 {[%clk 0:00:32]} 23. Bb3 {[%clk 0:01:10]}  Nxb2 {[%clk 0:00:23]} 24. e5 {[%clk 0:01:03]}  Na4 {[%clk 0:00:22]} 25. Qc4 {[%clk 0:01:03]}  Nb6 {[%clk 0:00:20]} 26. Qc5 {[%clk 0:01:03]}  h5 {[%clk 0:00:18]} 27. Nfd4 {[%clk 0:00:55]}  Bf8 {[%clk 0:00:16]} 28. Rh4 {[%clk 0:00:50]}  Bxd6 {[%clk 0:00:16]} 29. exd6 {[%clk 0:00:51]}  Na4 {[%clk 0:00:15]} 30. Qa3 {[%clk 0:00:46]}  Nb6 {[%clk 0:00:14]} 31. Nxc6 {[%clk 0:00:38]}  Bxc6 {[%clk 0:00:14]} 32. Rb4 {[%clk 0:00:35]}  Rd8 {[%clk 0:00:13]} 33. Qa5 {[%clk 0:00:33]}  Bb5 {[%clk 0:00:13]} 34. Bxe6+ {[%clk 0:00:28]}  Kb8 {[%clk 0:00:13]} 35. Rd4 {[%clk 0:00:22]}  Rhe8 {[%clk 0:00:12]} 36. Nf4 {[%clk 0:00:21]}  Ka7 {[%clk 0:00:10]} 37. Bb3 {[%clk 0:00:16]}  g5 {[%clk 0:00:11]} 38. Ne6 {[%clk 0:00:15]}  Rd7 {[%clk 0:00:10]} 39. Nc5 {[%clk 0:00:16]}  Qc6 {[%clk 0:00:09]} 40. Nxd7 {[%clk 0:00:16]}  Nxd7 {[%clk 0:00:09]} 41. Qb4 {[%clk 0:00:16]}  Nc5 {[%clk 0:00:09]} 42. Bc4 {[%clk 0:00:15]}  Bxc4 {[%clk 0:00:08]} 43. Qxc4 {[%clk 0:00:16]}  Rb8+ {[%clk 0:00:08]} 44. Kc1 {[%clk 0:00:16]}  Qb6 {[%clk 0:00:07]} 45. d7 {[%clk 0:00:16]}  Nb7 {[%clk 0:00:07]} 46. Rd5 {[%clk 0:00:13]}  Qe3+ {[%clk 0:00:07]} 47. Kd1 {[%clk 0:00:12]}  Qg1+ {[%clk 0:00:07]} 48. Kd2 {[%clk 0:00:12]}  Qf2+ {[%clk 0:00:07]} 49. Kc3 {[%clk 0:00:13]}  Qe1+ {[%clk 0:00:08]} 50. Kd4 {[%clk 0:00:12]}  Qf2+ {[%clk 0:00:07]} 51. Ke5 {[%clk 0:00:12]}  Qg3+ {[%clk 0:00:06]} 52. Kf6 {[%clk 0:00:12]}  Qxg2 {[%clk 0:00:05]} 53. Qd4+ {[%clk 0:00:12]}  Ka8 {[%clk 0:00:05]} 54. d8=Q {[%clk 0:00:13]}  Qf3+ {[%clk 0:00:05]} 55. Kxg5 {[%clk 0:00:12]}  Nxd8 {[%clk 0:00:04]} 56. Rxd8 {[%clk 0:00:13]}  Qg3+ {[%clk 0:00:01]} 57. Kxh5 {[%clk 0:00:12]}  Qh3+ {[%clk 0:00:02]} 58. Kg6 {[%clk 0:00:13]}  Qg3+ {[%clk 0:00:01]} 59. Kf7 {[%clk 0:00:13]}  Qc7+ {[%clk 0:00:01]} 60. Ke8 {[%clk 0:00:13]}  Qc6+ {[%clk 0:00:01]} 61. Ke7 {[%clk 0:00:12]}  Qc7+ {[%clk 0:00:00]} 62. Rd7 {[%clk 0:00:12]} 1-0


[Site "https://www.chess.com"]

[Event "Titled Tuesday Blitz May 9 Late 2023"]
[White "D`Arruda, Ricardo D."]
[Black "Aydincelebi, Kagan"]
[WhiteFideId "100692"]
[BlackFideId "6361102"]
[WhiteElo "2432"]
[BlackElo "2180"]
[Result "0-1"]
[Round "01"]
[TimeControl "180+2"]
[Date "2023.05.09"]
[WhiteClock "0:00:45"]
[BlackClock "0:00:36"]

1. d4 {[%clk 0:03:00]}  Nf6 {[%clk 0:02:59]} 2. Nf3 {[%clk 0:03:00]}  e6 {[%clk 0:02:59]} 3. c4 {[%clk 0:02:59]}  c5 {[%clk 0:03:00]} 4. d5 {[%clk 0:02:58]}  exd5 {[%clk 0:03:00]} 5. cxd5 {[%clk 0:02:58]}  d6 {[%clk 0:03:01]} 6. Nc3 {[%clk 0:02:57]}  g6 {[%clk 0:03:02]} 7. e4 {[%clk 0:02:57]}  a6 {[%clk 0:03:02]} 8. a4 {[%clk 0:02:55]}  Bg4 {[%clk 0:03:01]} 9. Be2 {[%clk 0:02:56]}  Bg7 {[%clk 0:03:01]} 10. h3 {[%clk 0:02:55]}  Bxf3 {[%clk 0:03:01]} 11. Bxf3 {[%clk 0:02:56]}  O-O {[%clk 0:03:02]} 12. O-O {[%clk 0:02:55]}  Nbd7 {[%clk 0:03:02]} 13. Re1 {[%clk 0:02:55]}  Rb8 {[%clk 0:03:02]} 14. Bf4 {[%clk 0:02:54]}  Ne8 {[%clk 0:03:02]} 15. Qd2 {[%clk 0:02:53]}  b5 {[%clk 0:03:01]} 16. axb5 {[%clk 0:02:53]}  axb5 {[%clk 0:03:02]} 17. Bh6 {[%clk 0:02:53]}  b4 {[%clk 0:02:54]} 18. Nd1 {[%clk 0:02:52]}  c4 {[%clk 0:02:42]} 19. Bxg7 {[%clk 0:02:49]}  Nxg7 {[%clk 0:02:43]} 20. Ne3 {[%clk 0:02:48]}  Ne5 {[%clk 0:02:37]} 21. Be2 {[%clk 0:02:45]}  Qh4 {[%clk 0:02:28]} 22. f3 {[%clk 0:02:38]}  f5 {[%clk 0:02:18]} 23. Nxc4 {[%clk 0:02:26]}  fxe4 {[%clk 0:02:09]} 24. Nxe5 {[%clk 0:02:25]}  dxe5 {[%clk 0:02:10]} 25. fxe4 {[%clk 0:02:19]}  Qf2+ {[%clk 0:01:55]} 26. Kh2 {[%clk 0:02:08]}  Nh5 {[%clk 0:01:55]} 27. Qd3 {[%clk 0:01:49]}  Nf4 {[%clk 0:01:41]} 28. Qf3 {[%clk 0:01:47]}  Qd4 {[%clk 0:01:32]} 29. Rad1 {[%clk 0:01:29]}  Qxb2 {[%clk 0:01:28]} 30. d6 {[%clk 0:01:29]}  Rbd8 {[%clk 0:01:04]} 31. Bf1 {[%clk 0:01:29]}  Nxg2 {[%clk 0:00:58]} 32. Re2 {[%clk 0:01:09]}  Rxf3 {[%clk 0:00:56]} 33. Rxb2 {[%clk 0:01:10]}  Ne3 {[%clk 0:00:56]} 34. Rbb1 {[%clk 0:00:54]}  Nxd1 {[%clk 0:00:49]} 35. Rxd1 {[%clk 0:00:55]}  b3 {[%clk 0:00:41]} 36. Bc4+ {[%clk 0:00:55]}  Kf8 {[%clk 0:00:41]} 37. Rd5 {[%clk 0:00:45]}  Rc3 {[%clk 0:00:36]} 0-1


[Site "https://www.chess.com"]

[Event "Titled Tuesday Blitz May 9 Late 2023"]
[White "Villuendas Valero, Adrian"]
[Black "Sieciechowicz, Marcin"]
[WhiteFideId "2262460"]
[BlackFideId "1130170"]
[WhiteElo "2328"]
[BlackElo "2302"]
[Result "0-1"]
[Round "01"]
[TimeControl "180+2"]
[Date "2023.05.09"]
[WhiteClock "0:00:00"]
[BlackClock "0:00:06"]

1. d4 {[%clk 0:02:59]}  Nf6 {[%clk 0:02:58]} 2. Bg5 {[%clk 0:02:58]}  e6 {[%clk 0:02:58]} 3. Nd2 {[%clk 0:02:54]}  d5 {[%clk 0:02:58]} 4. e3 {[%clk 0:02:54]}  h6 {[%clk 0:02:57]} 5. Bh4 {[%clk 0:02:53]}  Be7 {[%clk 0:02:58]} 6. Bd3 {[%clk 0:02:53]}  b6 {[%clk 0:02:57]} 7. f4 {[%clk 0:02:52]}  Bb7 {[%clk 0:02:57]} 8. Qf3 {[%clk 0:02:52]}  c5 {[%clk 0:02:52]} 9. c3 {[%clk 0:02:51]}  Nc6 {[%clk 0:02:50]} 10. Nh3 {[%clk 0:02:50]}  Qc7 {[%clk 0:02:41]} 11. Nf2 {[%clk 0:02:46]}  Rg8 {[%clk 0:02:38]} 12. g4 {[%clk 0:02:43]}  g5 {[%clk 0:02:34]} 13. fxg5 {[%clk 0:02:43]}  hxg5 {[%clk 0:02:33]} 14. Bg3 {[%clk 0:02:43]}  Qd7 {[%clk 0:02:25]} 15. O-O-O {[%clk 0:02:26]}  O-O-O {[%clk 0:02:17]} 16. dxc5 {[%clk 0:02:15]}  bxc5 {[%clk 0:02:13]} 17. Qe2 {[%clk 0:02:05]}  Bd6 {[%clk 0:02:07]} 18. e4 {[%clk 0:01:46]}  Bxg3 {[%clk 0:01:58]} 19. hxg3 {[%clk 0:01:46]}  Qc7 {[%clk 0:01:59]} 20. exd5 {[%clk 0:01:27]}  exd5 {[%clk 0:01:59]} 21. Qf3 {[%clk 0:01:20]}  Nd7 {[%clk 0:01:59]} 22. Rh7 {[%clk 0:00:58]}  Kb8 {[%clk 0:01:51]} 23. Bf5 {[%clk 0:00:46]}  Nde5 {[%clk 0:01:46]} 24. Qe2 {[%clk 0:00:39]}  d4 {[%clk 0:01:38]} 25. Nfe4 {[%clk 0:00:32]}  dxc3 {[%clk 0:01:30]} 26. Nxc3 {[%clk 0:00:31]}  Nd4 {[%clk 0:01:28]} 27. Qf1 {[%clk 0:00:26]}  Qb6 {[%clk 0:01:17]} 28. Nc4 {[%clk 0:00:22]}  Nxc4 {[%clk 0:01:09]} 29. Qxc4 {[%clk 0:00:23]}  Nxf5 {[%clk 0:01:06]} 30. gxf5 {[%clk 0:00:20]}  Rxd1+ {[%clk 0:01:06]} 31. Nxd1 {[%clk 0:00:20]}  Rd8 {[%clk 0:00:46]} 32. Nc3 {[%clk 0:00:20]}  f6 {[%clk 0:00:42]} 33. Qf7 {[%clk 0:00:06]}  Bf3 {[%clk 0:00:27]} 34. Qe7 {[%clk 0:00:06]}  Rc8 {[%clk 0:00:18]} 35. a3 {[%clk 0:00:04]}  Ba8 {[%clk 0:00:16]} 36. Rf7 {[%clk 0:00:04]}  c4 {[%clk 0:00:13]} 37. Qe6 {[%clk 0:00:04]}  Qg1+ {[%clk 0:00:08]} 38. Nd1 {[%clk 0:00:03]}  Qxg3 {[%clk 0:00:08]} 39. Qxf6 {[%clk 0:00:02]}  Qf4+ {[%clk 0:00:07]} 40. Kc2 {[%clk 0:00:02]}  Be4+ {[%clk 0:00:07]} 41. Kc3 {[%clk 0:00:03]}  Qf3+ {[%clk 0:00:07]} 42. Kd4 {[%clk 0:00:01]}  Qxd1+ {[%clk 0:00:06]} 43. Kxe4 {[%clk 0:00:00]}  Re8+ {[%clk 0:00:06]} 0-1


[Site "https://www.chess.com"]

[Event "Titled Tuesday Blitz May 9 Late 2023"]
[White "Colpe, Malte"]
[Black "Holt, Conrad"]
[WhiteFideId "24623075"]
[BlackFideId "2034387"]
[WhiteElo "2289"]
[BlackElo "2592"]
[Result "0-1"]
[Round "01"]
[TimeControl "180+2"]
[Date "2023.05.09"]
[WhiteClock "0:01:25"]
[BlackClock "0:01:20"]

1. c4 {[%clk 0:02:58]}  c6 {[%clk 0:02:49]} 2. Nf3 {[%clk 0:02:56]}  d5 {[%clk 0:02:50]} 3. e3 {[%clk 0:02:56]}  Nf6 {[%clk 0:02:48]} 4. b3 {[%clk 0:02:56]}  Bg4 {[%clk 0:02:46]} 5. Be2 {[%clk 0:02:54]}  e6 {[%clk 0:02:44]} 6. Bb2 {[%clk 0:02:54]}  Bd6 {[%clk 0:02:44]} 7. Nc3 {[%clk 0:02:53]}  Nbd7 {[%clk 0:02:43]} 8. d4 {[%clk 0:02:52]}  O-O {[%clk 0:02:41]} 9. O-O {[%clk 0:02:52]}  Bb8 {[%clk 0:02:36]} 10. cxd5 {[%clk 0:02:46]}  exd5 {[%clk 0:02:27]} 11. b4 {[%clk 0:02:44]}  Qc7 {[%clk 0:02:24]} 12. g3 {[%clk 0:02:43]}  Re8 {[%clk 0:02:21]} 13. b5 {[%clk 0:02:38]}  Nb6 {[%clk 0:02:17]} 14. bxc6 {[%clk 0:02:36]}  bxc6 {[%clk 0:02:09]} 15. Ne5 {[%clk 0:02:35]}  Bxe2 {[%clk 0:01:57]} 16. Qxe2 {[%clk 0:02:30]}  Qb7 {[%clk 0:01:57]} 17. f4 {[%clk 0:02:28]}  Bd6 {[%clk 0:01:51]} 18. Rab1 {[%clk 0:02:21]}  Bb4 {[%clk 0:01:51]} 19. a4 {[%clk 0:01:51]}  Bxc3 {[%clk 0:01:35]} 20. Bxc3 {[%clk 0:01:52]}  Ne4 {[%clk 0:01:35]} 21. Be1 {[%clk 0:01:52]}  f6 {[%clk 0:01:33]} 22. Nd3 {[%clk 0:01:47]}  Qa6 {[%clk 0:01:32]} 23. a5 {[%clk 0:01:37]}  Nc4 {[%clk 0:01:26]} 24. Nb2 {[%clk 0:01:32]}  Rab8 {[%clk 0:01:20]} 25. Nxc4 {[%clk 0:01:25]}  Rxb1 {[%clk 0:01:20]} 0-1


[Site "https://www.chess.com"]